bitfinex/quotes_BTCUSD_20220120
["timestamp","ask_amount","ask_price","bid_price","bid_amount"]
[1642694216046,0.17583985,43317.0,43316.0,0.1]
[1642694216245,0.17583985,43317.0,43316.0,0.05012033]
[1642694216496,0.42385501,43317.0,43316.0,0.00012033]
[1642694219497,0.057752,43322.0,43317.0,0.05775102]
[1642694219703,0.33355224,43325.0,43321.0,0.00128031]
[1642694219898,0.33355224,43325.0,43322.0,0.0463]
[1642694220366,0.33355224,43325.0,43322.0,0.0963]
[1642694220765,0.33355224,43325.0,43322.0,0.15404134]
[1642694220965,0.24913028,43326.0,43322.0,0.21177834]
[1642694221565,0.25113028,43326.0,43322.0,0.21177834]
[1642694221968,0.25113028,43326.0,43322.0,0.21296616]
[1642694222166,0.47205603,43326.0,43322.0,0.16296616]
[1642694222766,0.47005603,43326.0,43322.0,0.16296616]
[1642694222966,0.47005603,43326.0,43322.0,0.16177834]
[1642694223166,0.47005603,43326.0,43322.0,0.16296616]
[1642694223367,0.37599,43325.0,43322.0,0.16296616]
[1642694224098,0.37599,43325.0,43322.0,0.16177834]
[1642694224298,0.37599,43325.0,43322.0,0.11547834]
[1642694224897,0.37599,43325.0,43322.0,0.05774134]
[1642694225600,0.38299,43325.0,43322.0,0.10774134]
[1642694225802,0.440739,43325.0,43322.0,0.10774134]
[1642694226198,0.440739,43325.0,43322.0,0.05]
[1642694226599,0.440739,43325.0,43319.0,0.107748]
[1642694226802,0.064749,43325.0,43321.0,0.00118783]
[1642694227499,0.057749,43325.0,43321.0,0.00118783]
[1642694227748,0.057749,43325.0,43319.0,0.2232411]
[1642694227955,0.47005603,43326.0,43321.0,0.00118784]
[1642694228149,0.47005603,43326.0,43321.0,0.05118784]
[1642694228950,0.47005603,43326.0,43316.0,0.057744]
[1642694229151,0.47005603,43326.0,43321.0,0.00118783]
[1642694229152,0.00121097,43322.0,43321.0,0.00118783]
[1642694229351,0.00121097,43322.0,43300.0,2.0]
[1642694229352,0.00126385,43310.0,43306.0,0.00021008]
[1642694229556,0.00126385,43310.0,43304.0,0.00024066]
[1642694229557,0.09620385,43310.0,43304.0,0.00024066]
[1642694229949,0.37238529,43309.0,43303.0,0.00025785]
[1642694230152,0.1922919,43308.0,43300.0,2.28359897]
[1642694230352,1.05,43307.0,43302.0,0.41525785]
[1642694230552,1.05006876,43307.0,43302.0,0.41525785]
[1642694231401,1.3696301,43307.0,43302.0,0.41525785]
[1642694231603,1.3776301,43307.0,43302.0,0.41525785]
[1642694231801,1.57701875,43307.0,43302.0,0.41025785]
[1642694232603,0.3276301,43307.0,43302.0,0.41025785]
[1642694232904,0.05784376,43307.0,43302.0,0.46025785]
[1642694233103,0.05784376,43307.0,43302.0,0.51025785]
[1642694233504,0.06484376,43307.0,43302.0,0.51025785]
[1642694233703,0.24076334,43307.0,43302.0,0.51025785]
[1642694233905,0.24076334,43307.0,43302.0,0.51137865]
[1642694234107,0.06484376,43307.0,43302.0,0.51137865]
[1642694234304,0.00706876,43307.0,43302.0,0.51137865]
[1642694234806,6.876e-05,43307.0,43302.0,0.51137865]
[1642694235004,6.876e-05,43307.0,43302.0,0.51025785]
[1642694235248,6.876e-05,43307.0,43302.0,0.5118056]
[1642694235649,6.876e-05,43307.0,43303.0,0.433759]
[1642694236451,6.876e-05,43307.0,43304.0,0.04542701]
[1642694236649,6.876e-05,43307.0,43306.0,0.65289892]
[1642694236851,6.876e-05,43307.0,43306.0,0.375962]
[1642694237051,6.876e-05,43307.0,43306.0,0.387502]
[1642694237453,6.876e-05,43307.0,43306.0,0.396962]
[1642694237854,6.876e-05,43307.0,43306.0,0.021]
[1642694238352,0.04636876,43307.0,43306.0,0.021]
[1642694238553,0.20967917,43311.0,43306.0,0.021]
[1642694238754,0.20168384,43309.0,43304.0,0.00112933]
[1642694239205,0.20967917,43311.0,43304.0,0.00112933]
[1642694239206,0.20967917,43311.0,43305.0,0.37599]
[1642694239404,0.20967917,43311.0,43305.0,0.18549209]
[1642694239603,0.004,43309.0,43305.0,0.18549209]
[1642694239803,0.004,43309.0,43305.0,0.28549209]
[1642694240010,0.03457741,43318.0,43308.0,0.00126708]
[1642694240207,0.00048498,43323.0,43319.0,0.2021975]
[1642694240605,0.08993703,43323.0,43313.0,0.001203]
[1642694240806,0.33246663,43322.0,43313.0,0.001203]
[1642694241007,0.057759,43319.0,43313.0,0.001203]
[1642694241206,0.057759,43319.0,43316.0,0.00112913]
[1642694241405,0.46544205,43318.0,43316.0,0.00112913]
[1642694241610,0.46544205,43318.0,43317.0,0.06154]
[1642694241611,0.08945205,43318.0,43317.0,0.06154]
[1642694241807,0.007,43319.0,43317.0,0.38880526]
[1642694242010,0.007,43319.0,43317.0,0.52880526]
[1642694242207,0.00973616,43323.0,43318.0,0.75127762]
[1642694242208,0.009251,43323.0,43318.0,0.75127762]
[1642694242406,0.00974619,43323.0,43319.0,0.34393]
[1642694242658,0.17223657,43322.0,43320.0,0.01154]
[1642694242852,0.19169539,43321.0,43320.0,0.01154]
[1642694243050,0.19193605,43321.0,43320.0,0.01154]
[1642694243450,0.00024066,43321.0,43320.0,0.05854]
[1642694243750,0.00946281,43323.0,43320.0,0.434522]
[1642694243949,0.00946281,43323.0,43320.0,0.549999]
[1642694244149,0.00946281,43323.0,43320.0,0.649999]
[1642694244350,0.00946281,43323.0,43321.0,0.1]
[1642694244550,0.00896758,43323.0,43321.0,0.1]
[1642694244750,0.00896758,43323.0,43321.0,0.05]
[1642694244952,0.375982,43322.0,43321.0,0.0492]
[1642694245154,0.375982,43322.0,43319.0,0.00113364]
[1642694245551,0.375982,43322.0,43321.0,0.045]
[1642694245953,0.46544321,43322.0,43321.0,0.045]
[1642694246396,0.77481483,43322.0,43321.0,0.045]
[1642694246801,0.77481483,43322.0,43321.0,0.01154]
[1642694246998,0.375982,43322.0,43321.0,0.01154]
[1642694247397,0.375982,43322.0,43319.0,0.00113249]
[1642694247596,0.375982,43322.0,43321.0,0.025]
[1642694247799,0.58072205,43322.0,43321.0,0.025]
[1642694247997,0.96387801,43322.0,43321.0,0.025]
[1642694248198,1.65335875,43322.0,43321.0,0.025]
[1642694248596,1.65463884,43322.0,43321.0,0.025]
[1642694248796,1.65463884,43322.0,43319.0,0.00113249]
[1642694249198,0.08948074,43321.0,43319.0,0.00113249]
[1642694249398,1.92183937,43320.0,43315.0,0.05]
[1642694249599,1.92183937,43320.0,43319.0,0.025]
[1642694250553,2.07959837,43320.0,43319.0,0.025]
[1642694250757,2.19623257,43320.0,43317.0,0.0011328]
[1642694251359,1.57718911,43318.0,43317.0,0.0011328]
[1642694251554,1.72348911,43318.0,43317.0,0.0051328]
[1642694251753,1.72348911,43318.0,43305.0,0.00010504]
[1642694251754,1.575982,43317.0,43305.0,0.00010504]
[1642694251955,0.057774,43314.0,43304.0,0.05010504]
[1642694252153,0.104074,43314.0,43312.0,0.18822289]
[1642694252355,0.104074,43314.0,43307.0,0.01154]
[1642694252356,0.18158363,43313.0,43307.0,0.01154]
[1642694252555,0.18158363,43313.0,43308.0,0.375982]
[1642694252753,0.18158363,43313.0,43308.0,0.00013752]
[1642694252960,0.18158363,43313.0,43309.0,0.00012033]
[1642694253152,0.18158363,43313.0,43309.0,0.01154]
[1642694253353,0.0463,43319.0,43310.0,0.15494387]
[1642694253555,0.005,43313.0,43310.0,0.20504701]
[1642694253753,0.005,43313.0,43311.0,0.37606795]
[1642694254015,0.34821521,43322.0,43313.0,0.35]
[1642694254016,8.595e-05,43321.0,43313.0,0.35]
[1642694254412,6.876e-05,43320.0,43318.0,0.22154354]
[1642694254614,6.876e-05,43320.0,43319.0,0.343957]
[1642694255014,6.876e-05,43320.0,43319.0,0.65650427]
[1642694255716,6.876e-05,43320.0,43319.0,0.94670014]
[1642694255913,6.876e-05,43320.0,43319.0,0.94798512]
[1642694256913,6.876e-05,43320.0,43319.0,0.91498512]
[1642694257112,6.876e-05,43320.0,43319.0,0.65778925]
[1642694257512,6.876e-05,43320.0,43319.0,0.67878925]
[1642694258154,6.876e-05,43320.0,43319.0,1.38801563]
[1642694258558,6.876e-05,43320.0,43319.0,1.48431563]
[1642694258855,6.876e-05,43320.0,43319.0,1.23960159]
[1642694259055,0.5,43328.0,43325.0,0.00126963]
[1642694259257,0.5,43328.0,43327.0,0.20831753]
[1642694259457,0.02,43337.0,43336.0,0.59683854]
[1642694259657,0.02,43337.0,43336.0,0.99064854]
[1642694259855,0.02,43337.0,43336.0,1.09064854]
[1642694260056,0.02,43337.0,43336.0,1.13820586]
[1642694260355,0.02,43337.0,43336.0,1.37541324]
[1642694260754,0.02,43337.0,43336.0,1.28695324]
[1642694260957,0.02,43337.0,43336.0,1.0901147]
[1642694261607,0.02,43337.0,43336.0,1.1041147]
[1642694262109,0.02,43337.0,43336.0,1.29561535]
[1642694262507,0.02,43337.0,43336.0,1.1041147]
[1642694262908,0.02,43337.0,43336.0,1.2041147]
[1642694263312,0.02,43337.0,43336.0,1.2482186]
[1642694263510,0.02,43337.0,43336.0,1.24711731]
[1642694264010,0.02,43337.0,43336.0,1.3518522]
[1642694264408,0.02,43337.0,43336.0,1.1578147]
[1642694264610,0.02,43337.0,43336.0,0.52060732]
[1642694264810,0.02,43337.0,43336.0,0.40660732]
[1642694265010,0.02,43337.0,43336.0,0.06154]
[1642694265253,0.02,43337.0,43336.0,0.01154]
[1642694265454,0.02,43337.0,43330.0,0.18447442]
[1642694265654,0.02,43337.0,43336.0,0.015]
[1642694265655,0.35495333,43337.0,43336.0,0.015]
[1642694265854,0.395982,43337.0,43336.0,0.015]
[1642694266058,1.1745474,43337.0,43336.0,0.015]
[1642694266254,1.17438981,43337.0,43336.0,0.015]
[1642694266455,0.78385708,43337.0,43336.0,0.015]
[1642694266653,0.47438981,43337.0,43336.0,0.015]
[1642694267458,0.80835177,43337.0,43326.0,0.01154]
[1642694267657,0.44036977,43337.0,43336.0,0.045]
[1642694267858,0.40382441,43337.0,43336.0,0.045]
[1642694268058,1.25382441,43337.0,43336.0,0.045]
[1642694268458,0.40382441,43337.0,43336.0,0.045]
[1642694269112,0.75382441,43337.0,43336.0,0.045]
[1642694269315,0.19739891,43336.0,43328.0,0.05891678]
[1642694269512,0.19739891,43336.0,43328.0,0.22327418]
[1642694269713,0.19767395,43336.0,43328.0,0.2220864]
[1642694269914,0.00060957,43334.0,43328.0,0.22327414]
[1642694270320,0.23288454,43329.0,43328.0,0.22327414]
[1642694270513,0.23288454,43329.0,43328.0,0.05891674]
[1642694270717,0.23303925,43329.0,43328.0,0.05891674]
[1642694270912,0.23303925,43329.0,43328.0,0.057729]
[1642694271714,0.23303925,43329.0,43327.0,0.1]
[1642694272214,0.23303925,43329.0,43328.0,0.05]
[1642694272215,0.23288454,43329.0,43328.0,0.05]
[1642694272413,0.84656234,43329.0,43327.0,0.05]
[1642694272655,0.375982,43328.0,43327.0,0.05]
[1642694272952,0.56188256,43328.0,43327.0,0.05]
[1642694273551,0.375982,43328.0,43327.0,0.05]
[1642694276416,0.375982,43328.0,43327.0,0.0506]
[1642694276915,0.825982,43328.0,43327.0,0.0506]
[1642694277613,0.832982,43328.0,43327.0,0.0506]
[1642694278314,0.382982,43328.0,43327.0,0.0506]
[1642694279515,0.381982,43328.0,43327.0,0.0506]
[1642694280765,0.375982,43328.0,43327.0,0.0506]
[1642694281367,0.375982,43328.0,43327.0,0.0006]
[1642694281368,0.37723773,43328.0,43327.0,0.0006]
[1642694281568,0.48623773,43328.0,43327.0,0.0006]
[1642694281764,0.38623773,43328.0,43327.0,0.0006]
[1642694281967,1.58623773,43328.0,43327.0,0.0006]
[1642694282565,1.73253773,43328.0,43327.0,0.0006]
[1642694282966,1.63253773,43328.0,43327.0,0.0006]
[1642694283265,0.1660672,43322.0,43313.0,0.25411528]
[1642694283468,0.0463,43324.0,43313.0,0.25411528]
[1642694283669,0.3282817,43325.0,43314.0,0.00010314]
[1642694283906,0.00012033,43327.0,43314.0,0.00010314]
[1642694284112,0.01,43328.0,43315.0,0.10575562]
[1642694284113,6.876e-05,43324.0,43315.0,0.10575562]
[1642694284306,0.00010314,43326.0,43316.0,0.0427648]
[1642694284511,0.17319602,43327.0,43320.0,0.18827334]
[1642694284705,8.595e-05,43325.0,43320.0,0.18827334]
[1642694284906,0.00010314,43326.0,43320.0,0.23827334]
[1642694285107,6.876e-05,43324.0,43320.0,0.24955134]
[1642694285306,8.595e-05,43325.0,43320.0,0.24955134]
[1642694285505,0.00013752,43328.0,43320.0,0.24955134]
[1642694285705,6.876e-05,43324.0,43320.0,0.24955134]
[1642694285908,0.00012033,43327.0,43321.0,0.05774]
[1642694286207,0.00010314,43326.0,43321.0,0.05774]
[1642694286409,0.00010314,43326.0,43322.0,0.01154]
[1642694286606,8.595e-05,43325.0,43322.0,0.127001]
[1642694287012,6.876e-05,43324.0,43322.0,0.127001]
[1642694287208,6.876e-05,43324.0,43322.0,0.177001]
[1642694287408,0.23288454,43329.0,43322.0,0.177001]
[1642694287409,0.00013752,43328.0,43322.0,0.177001]
[1642694287655,0.00013752,43328.0,43323.0,0.01154]
[1642694287857,0.00012033,43327.0,43323.0,0.01154]
[1642694288059,0.24406065,43324.0,43323.0,0.0127278]
[1642694288457,0.24412941,43324.0,43323.0,0.0127278]
[1642694288956,0.24412941,43324.0,43323.0,0.01154]
[1642694289760,0.45303318,43324.0,43323.0,0.01154]
[1642694289960,0.77809174,43324.0,43323.0,0.01154]
[1642694290159,0.62011141,43324.0,43323.0,0.01154]
[1642694290360,0.95366365,43324.0,43323.0,0.01154]
[1642694290560,0.57768165,43324.0,43323.0,0.01154]
[1642694291817,0.91123389,43324.0,43323.0,0.01154]
[1642694292417,1.24478613,43324.0,43323.0,0.01154]
[1642694296164,1.2,43323.0,43317.0,0.11548]
[1642694296369,1.2,43323.0,43312.0,0.05]
[1642694296370,1.2,43321.0,43312.0,0.05]
[1642694296565,0.00125978,43318.0,43312.0,0.05]
[1642694296965,0.40381181,43317.0,43312.0,0.05]
[1642694297567,0.20850623,43316.0,43312.0,0.05113637]
[1642694298165,0.375982,43315.0,43312.0,0.05113637]
[1642694298566,0.20850623,43316.0,43312.0,0.05]
[1642694298767,0.20850623,43316.0,43313.0,0.057751]
[1642694299029,0.20850623,43316.0,43313.0,0.157751]
[1642694299434,0.20850623,43316.0,43313.0,0.1]
[1642694300034,0.20850623,43316.0,43313.0,0.05]
[1642694300230,0.20850623,43316.0,43312.0,0.00113209]
[1642694300630,0.35,43315.0,43310.0,0.20174113]
[1642694301030,0.35,43315.0,43311.0,8.595e-05]
[1642694301234,0.20850623,43316.0,43311.0,8.595e-05]
[1642694302232,0.33355224,43315.0,43311.0,8.595e-05]
[1642694303060,0.375982,43314.0,43311.0,8.595e-05]
[1642694303664,0.383982,43314.0,43311.0,8.595e-05]
[1642694303859,0.383982,43314.0,43310.0,0.00123636]
[1642694304460,0.71753424,43314.0,43310.0,0.00123636]
[1642694304661,0.71753424,43314.0,43310.0,0.00010314]
[1642694304860,0.15822584,43312.0,43310.0,0.00123635]
[1642694305065,0.15822584,43312.0,43306.0,0.05]
[1642694305066,1.20127032,43311.0,43306.0,0.05]
[1642694305267,1.20127032,43311.0,43300.0,2.03397739]
[1642694305268,0.00127985,43308.0,43302.0,0.08393328]
[1642694305660,0.00127985,43308.0,43303.0,0.00012033]
[1642694305860,0.22370532,43307.0,43303.0,0.00012033]
[1642694307116,0.22370532,43307.0,43303.0,0.00087723]
[1642694307514,0.22370532,43307.0,43304.0,0.00010314]
[1642694309317,0.8823645,43305.0,43304.0,0.00010314]
[1642694309516,0.7,43305.0,43304.0,0.00010314]
[1642694310563,1.2,43305.0,43304.0,0.00010314]
[1642694310760,0.375982,43305.0,43304.0,0.00010314]
[1642694310966,0.009,43307.0,43304.0,0.05010314]
[1642694311364,0.009,43307.0,43305.0,8.595e-05]
[1642694311563,0.18226201,43309.0,43305.0,8.595e-05]
[1642694311764,0.006,43307.0,43305.0,8.595e-05]
[1642694312163,0.93725566,43306.0,43305.0,8.595e-05]
[1642694312563,1.43725566,43306.0,43305.0,8.595e-05]
[1642694312765,1.81323766,43306.0,43305.0,8.595e-05]
[1642694312965,0.24003201,43309.0,43305.0,8.595e-05]
[1642694313177,0.19990981,43307.0,43305.0,0.01173094]
[1642694313365,0.33355224,43311.0,43306.0,0.376023]
[1642694313565,0.33355224,43311.0,43306.0,0.10006876]
[1642694313764,0.33355224,43311.0,43307.0,0.1]
[1642694314011,0.64931131,43308.0,43307.0,0.15010499]
[1642694314211,0.33355224,43311.0,43307.0,0.21940599]
[1642694314412,0.23365224,43311.0,43308.0,0.376023]
[1642694314610,0.23365224,43311.0,43308.0,0.49163399]
[1642694315113,0.23365224,43311.0,43310.0,0.61154]
[1642694315317,0.23365224,43311.0,43310.0,1.15855556]
[1642694315515,0.23365224,43311.0,43310.0,1.30866055]
[1642694315817,0.23365224,43311.0,43310.0,1.31866055]
[1642694315818,0.25965224,43311.0,43310.0,1.31866055]
[1642694316013,0.001316,43320.0,43310.0,1.36496055]
[1642694316014,6.876e-05,43320.0,43310.0,1.36496055]
[1642694316213,6.876e-05,43320.0,43318.0,0.20884037]
[1642694316412,0.00204826,43323.0,43318.0,0.39522101]
[1642694316611,0.23675472,43325.0,43318.0,0.46027096]
[1642694316811,0.23675472,43325.0,43319.0,0.01154]
[1642694316812,0.00020628,43322.0,43319.0,0.01154]
[1642694317314,0.23675472,43325.0,43319.0,0.01154]
[1642694317315,0.00018909,43321.0,43319.0,0.01154]
[1642694317759,0.0001719,43320.0,43319.0,0.03154]
[1642694318558,0.0001719,43320.0,43319.0,1.09734871]
[1642694318755,0.0001719,43320.0,43319.0,0.407563]
[1642694318954,0.0001719,43320.0,43319.0,0.11154]
[1642694319556,0.0006307,43322.0,43319.0,0.169272]
[1642694319755,0.0006307,43322.0,43321.0,0.01154]
[1642694320155,0.19447731,43323.0,43321.0,0.01154]
[1642694320958,0.19447731,43323.0,43322.0,0.01154]
[1642694321816,0.19447731,43323.0,43322.0,0.02554]
[1642694323117,0.19447731,43323.0,43322.0,0.01154]
[1642694323718,0.19447731,43323.0,43322.0,0.02654]
[1642694325019,0.19447731,43323.0,43322.0,0.01154]
[1642694325858,0.19447731,43323.0,43322.0,0.02454]
[1642694327261,0.52802955,43323.0,43322.0,0.01154]
[1642694327463,0.19373925,43319.0,43318.0,0.11023766]
[1642694327662,0.19373925,43319.0,43318.0,0.05]
[1642694327861,0.19373925,43319.0,43318.0,0.08660526]
[1642694328062,0.19373925,43319.0,43317.0,0.215468]
[1642694328666,0.19373925,43319.0,43318.0,0.01154]
[1642694329107,0.00049953,43320.0,43318.0,0.01154]
[1642694329508,0.00049953,43320.0,43317.0,0.115468]
[1642694329711,0.52802955,43323.0,43318.0,0.023]
[1642694330109,0.00049954,43321.0,43318.0,0.023]
[1642694330411,0.24813334,43319.0,43318.0,0.023]
[1642694331011,0.24813334,43319.0,43317.0,0.115468]
[1642694331411,0.00049954,43321.0,43318.0,0.01154]
[1642694332310,0.52802955,43323.0,43318.0,0.01154]
[1642694332511,0.000502,43322.0,43320.0,0.15600964]
[1642694332779,0.000502,43322.0,43321.0,0.76154]
[1642694332977,0.000502,43322.0,43321.0,1.187563]
[1642694333175,0.00200771,43328.0,43322.0,0.676023]
[1642694333376,1.1004,43331.0,43322.0,0.415459]
[1642694333576,0.00050202,43324.0,43322.0,0.465459]
[1642694333780,0.00050202,43324.0,43323.0,0.01154]
[1642694334278,0.00057078,43324.0,43323.0,0.387563]
[1642694334676,6.876e-05,43324.0,43323.0,0.387563]
[1642694335778,6.876e-05,43324.0,43323.0,0.448563]
[1642694335977,0.00049808,43326.0,43323.0,0.448563]
[1642694336178,0.00049808,43326.0,43324.0,0.165468]
[1642694337016,0.17004823,43332.0,43324.0,0.165468]
[1642694337217,0.24845534,43325.0,43324.0,0.165468]
[1642694337615,0.24845534,43325.0,43324.0,0.16558833]
[1642694337818,0.24845534,43325.0,43324.0,0.19658833]
[1642694338017,0.24845534,43325.0,43324.0,0.08112033]
[1642694338417,0.24845534,43325.0,43324.0,0.03112033]
[1642694339020,0.24845534,43325.0,43324.0,0.00012033]
[1642694339419,0.24845534,43325.0,43324.0,0.0463]
[1642694339620,0.00049905,43327.0,43323.0,0.00013752]
[1642694339820,0.00049905,43327.0,43324.0,0.073]
[1642694340259,0.00049905,43327.0,43325.0,0.00010314]
[1642694340655,0.20030005,43326.0,43325.0,0.00010314]
[1642694341455,0.00049906,43328.0,43323.0,0.00013752]
[1642694341658,0.00049906,43328.0,43323.0,0.35308252]
[1642694341860,1.16913657,43337.0,43323.0,0.35308252]
[1642694341861,0.0549259,43337.0,43326.0,0.11545]
[1642694342057,0.0549259,43337.0,43327.0,0.34642848]
[1642694342058,0.00049906,43328.0,43327.0,0.34642848]
[1642694342256,0.00049906,43328.0,43327.0,1.32730924]
[1642694342457,0.00049906,43328.0,43327.0,1.53453489]
[1642694343057,0.20956266,43333.0,43328.0,0.115452]
[1642694343256,0.19824178,43335.0,43328.0,0.115452]
[1642694343257,0.00049883,43330.0,43328.0,0.46839]
[1642694343458,0.00049883,43330.0,43329.0,2.017534]
[1642694343658,0.00049883,43330.0,43329.0,2.117534]
[1642694343911,6.876e-05,43335.0,43330.0,0.65]
[1642694344113,6.876e-05,43335.0,43332.0,0.00126118]
[1642694344311,6.876e-05,43335.0,43334.0,0.16532663]
[1642694344509,6.876e-05,43335.0,43334.0,0.376023]
[1642694344709,6.876e-05,43335.0,43334.0,0.426023]
[1642694344911,6.876e-05,43335.0,43334.0,0.476023]
[1642694345610,6.876e-05,43335.0,43334.0,0.1]
[1642694345816,6.876e-05,43335.0,43334.0,0.092]
[1642694346016,0.37609176,43335.0,43334.0,0.042]
[1642694346210,1.40104567,43335.0,43334.0,0.042]
[1642694346410,0.37609176,43335.0,43334.0,0.042]
[1642694346813,6.876e-05,43335.0,43334.0,0.042]
[1642694347011,6.876e-05,43335.0,43333.0,0.115439]
[1642694347665,6.876e-05,43335.0,43334.0,0.76154]
[1642694347865,6.876e-05,43335.0,43334.0,1.126023]
[1642694348065,6.876e-05,43335.0,43334.0,1.237563]
[1642694349665,6.876e-05,43335.0,43334.0,0.487563]
[1642694349865,6.876e-05,43335.0,43334.0,0.410563]
[1642694350066,6.876e-05,43335.0,43334.0,0.510563]
[1642694350466,6.876e-05,43335.0,43334.0,0.410563]
[1642694351164,6.876e-05,43335.0,43334.0,0.487563]
[1642694351811,6.876e-05,43335.0,43334.0,0.508563]
[1642694353012,6.876e-05,43335.0,43334.0,0.987563]
[1642694353215,6.876e-05,43335.0,43334.0,1.073323]
[1642694353425,0.002,43351.0,43336.0,1.2]
[1642694353426,0.001,43348.0,43336.0,1.2]
[1642694353616,0.001,43348.0,43335.0,0.376023]
[1642694353617,0.9773,43352.0,43345.0,0.00121956]
[1642694353618,0.001,43352.0,43345.0,0.00121956]
[1642694353816,0.003,43354.0,43350.0,0.00125671]
[1642694354216,0.421,43353.0,43352.0,0.01154]
[1642694354617,0.001,43361.0,43352.0,0.17154]
[1642694354812,1.1723,43363.0,43353.0,0.16]
[1642694355014,0.17213338,43362.0,43353.0,0.26]
[1642694355264,0.17213338,43362.0,43353.0,0.16]
[1642694355265,0.0004287,43359.0,43353.0,0.16]
[1642694355465,0.19216312,43358.0,43353.0,0.16]
[1642694355659,0.19216312,43358.0,43353.0,0.217697]
[1642694355859,0.2143946,43354.0,43353.0,0.234697]
[1642694356061,0.2143946,43354.0,43353.0,0.017]
[1642694356261,0.2143946,43354.0,43353.0,0.01706876]
[1642694356463,0.0004287,43356.0,43353.0,0.01706876]
[1642694356662,0.0004287,43356.0,43353.0,0.19140176]
[1642694356862,0.0004287,43356.0,43353.0,0.29140176]
[1642694357064,0.0004287,43356.0,43355.0,0.91280159]
[1642694357268,0.0004287,43356.0,43355.0,1.38856759]
[1642694357563,8.595e-05,43362.0,43361.0,0.00125178]
[1642694357964,8.595e-05,43362.0,43361.0,1.25909178]
[1642694358163,8.595e-05,43362.0,43361.0,1.63485778]
[1642694358366,8.595e-05,43362.0,43361.0,0.52331778]
[1642694358768,8.595e-05,43362.0,43361.0,0.54332778]
[1642694359030,0.2169,43363.0,43362.0,0.7]
[1642694359230,0.2169,43363.0,43362.0,0.422066]
[1642694359433,0.2169,43363.0,43362.0,0.42330229]
[1642694359629,0.2169,43363.0,43362.0,0.59556968]
[1642694359832,0.2169,43363.0,43362.0,0.61356968]
[1642694360029,0.2169,43363.0,43362.0,0.451606]
[1642694360234,0.2169,43363.0,43362.0,0.018]
[1642694360435,0.59394207,43363.0,43362.0,0.018]
[1642694360633,0.592666,43363.0,43362.0,0.02954]
[1642694360833,0.00166143,43365.0,43363.0,0.6]
[1642694361036,0.00166143,43365.0,43364.0,0.775766]
[1642694361037,0.00106,43365.0,43364.0,0.775766]
[1642694361334,0.00106,43365.0,43364.0,0.375766]
[1642694361335,0.00166143,43365.0,43364.0,0.375766]
[1642694361732,0.00166143,43365.0,43364.0,0.387306]
[1642694361931,0.00166143,43365.0,43364.0,0.427306]
[1642694362130,0.00106,43365.0,43364.0,0.427306]
[1642694362335,0.42,43370.0,43365.0,0.55]
[1642694362534,0.42,43370.0,43366.0,1.23472244]
[1642694362535,0.00060145,43367.0,43366.0,1.23472244]
[1642694362771,0.42,43370.0,43366.0,0.9]
[1642694362969,0.59662293,43372.0,43367.0,0.0463]
[1642694362970,0.009241,43372.0,43367.0,0.0463]
[1642694363170,0.50002837,43374.0,43369.0,0.75]
[1642694363370,0.88307591,43383.0,43369.0,0.75]
[1642694363371,8.595e-05,43371.0,43370.0,1.65378459]
[1642694363669,0.00015471,43375.0,43372.0,0.00126678]
[1642694363868,0.002,43380.0,43375.0,0.21852683]
[1642694364067,0.002,43380.0,43376.0,0.0463]
[1642694364269,0.002,43380.0,43376.0,0.04636876]
[1642694364469,0.002,43380.0,43377.0,0.01152]
[1642694364670,0.0999,43383.0,43379.0,0.01152]
[1642694364874,0.68527892,43385.0,43379.0,0.01152]
[1642694365176,0.68527892,43388.0,43379.0,0.01152]
[1642694365371,0.9232103,43388.0,43379.0,0.01152]
[1642694365568,0.2590019,43382.0,43379.0,0.01152]
[1642694365769,0.06,43382.0,43379.0,0.01152]
[1642694365970,0.06,43382.0,43379.0,0.07717]
[1642694366423,0.06,43382.0,43379.0,0.06565]
[1642694366824,0.375702,43381.0,43379.0,0.06565]
[1642694367024,0.375702,43381.0,43378.0,0.0463]
[1642694367823,0.004,43381.0,43378.0,0.0603]
[1642694368024,0.004,43381.0,43379.0,0.375702]
[1642694368528,0.004,43381.0,43379.0,0.425702]
[1642694368727,0.004,43381.0,43380.0,0.87973884]
[1642694368928,0.004,43381.0,43380.0,1.26696084]
[1642694369123,0.06058037,43382.0,43380.0,1.02174984]
[1642694369323,0.06058037,43382.0,43381.0,0.375702]
[1642694369625,0.06,43382.0,43381.0,0.375702]
[1642694369824,0.06,43382.0,43381.0,0.441702]
[1642694370675,0.2909232,43382.0,43381.0,0.441702]
[1642694370873,0.2909232,43382.0,43381.0,0.39955224]
[1642694371077,0.2909232,43382.0,43381.0,0.33355224]
[1642694371276,0.3485922,43382.0,43381.0,0.33355224]
[1642694371478,0.90627027,43382.0,43381.0,0.33355224]
[1642694371877,2.09927027,43382.0,43381.0,0.10045224]
[1642694372182,1.2,43381.0,43379.0,0.0014]
[1642694372379,1.2,43381.0,43379.0,0.00090251]
[1642694372380,1.57700072,43380.0,43379.0,0.00090251]
[1642694372580,1.58278918,43380.0,43379.0,0.00090251]
[1642694372782,1.58278918,43380.0,43376.0,6.876e-05]
[1642694373080,1.58278918,43380.0,43372.0,0.00013752]
[1642694373081,0.057676,43378.0,43372.0,0.00013752]
[1642694373280,0.22704354,43376.0,43372.0,0.00013752]
[1642694373480,1.40193045,43372.0,43371.0,0.00118702]
[1642694373682,1.77763245,43372.0,43371.0,0.00118702]
[1642694374218,0.57763245,43372.0,43362.0,0.37695497]
[1642694374413,0.57763245,43372.0,43369.0,0.00118698]
[1642694374414,0.49853611,43372.0,43369.0,0.00118698]
[1642694374612,0.375702,43371.0,43369.0,0.00118698]
[1642694374819,1.54962287,43370.0,43369.0,0.00118698]
[1642694375116,1.54962287,43370.0,43369.0,0.00018909]
[1642694375117,1.92659988,43370.0,43369.0,0.00018909]
[1642694375513,0.057689,43367.0,43356.0,0.01193256]
[1642694375813,0.14651929,43366.0,43357.0,0.00039537]
[1642694376015,0.00122223,43364.0,43357.0,0.00039537]
[1642694376214,0.422002,43363.0,43356.0,0.00041256]
[1642694376414,0.22070256,43359.0,43356.0,0.00041256]
[1642694376612,0.22070256,43359.0,43350.0,0.39506545]
[1642694376815,0.22070256,43359.0,43357.0,0.00076945]
[1642694377017,0.375702,43358.0,43357.0,0.00076945]
[1642694377216,1.075702,43358.0,43357.0,0.00076945]
[1642694377867,1.075702,43358.0,43344.0,0.24116395]
[1642694377868,0.20207269,43346.0,43344.0,0.24116395]